{"text_format":"1","workbook":"xlsx","n_sheets":1,"sheets":["Κατάταξη"],"not_rendered":{"charts":0,"images":0,"macros":1,"external_links":0,"defined_names":2,"comments":0,"pivot_tables":0},"unopened":[],"bounds":{"document_bytes":16777216,"sheet_cells":100000,"rows_first":2000,"rows_last":500,"rows_between":2000,"halvings":0,"cell_chars":16384,"cell_head_chars":4096},"cells_cut":0,"cells_raw":0,"read":"whole","date_system":"1900"}

{"sheet":"Κατάταξη","index":0,"n_rows":20,"n_cols":55,"rows_kept":20,"cut":false,"hidden":false,"merged":[[6,41,8,41],[6,42,8,42],[7,23,8,23],[7,24,8,24],[7,25,8,25],[7,26,8,26],[7,27,8,27],[7,28,8,28],[6,38,8,38],[6,39,8,39],[7,37,8,37],[7,34,8,34],[7,35,8,35],[7,36,8,36],[7,29,8,29],[6,0,8,0],[6,1,8,1],[6,2,8,2],[6,3,8,3],[6,40,8,40],[6,4,8,4],[6,5,8,5],[6,6,8,6],[6,7,8,7],[7,33,8,33],[0,5,0,14],[1,1,1,3],[1,9,1,22],[1,29,1,32],[2,9,2,22],[2,25,2,28],[2,29,2,32],[2,1,2,3],[3,1,3,3],[4,1,4,3],[7,30,8,30],[7,31,8,31],[7,32,8,32],[3,9,3,22],[4,9,4,22],[5,9,5,22],[6,8,6,22],[6,23,6,37]]}
[null,null,null,null,null,null,null,null,null,null,null,null,null,null,null,null,null,null,null,null,null,null,null,null,null,null,null,null,null,null,null,null,null,null,null,null,null,null,null,null,null,null,null,null,null,"ΟΧΙ",1]
[null,"Φορέας : ΔΗΜΟΣ ΦΥΛΗΣ",null,null,null,null,null,null,null,"ΠΡΟΣΛΗΨΗ ΠΡΟΣΩΠΙΚΟΥ ΜΕ ΣΥΜΒΑΣΗ ΟΡΙΣΜΕΝΟΥ ΧΡΟΝΟΥ",null,null,null,null,null,null,null,null,null,null,null,null,null,null,null,null,null,null,null,"ΑΝΑΚΟΙΝΩΣΗ :",null,null,null,null,null,null,null,null,null,null,null,null,null,null,null,"ΝΑΙ","Α",75]
[null,"Υπηρεσία :  ΔΗΜΟΣ ΦΥΛΗΣ                                               ",null,null,null,null,null,null,null,"ΠΙΝΑΚΑΣ ΚΑΤΑΤΑΞΗΣ ΒΑΘΜΟΛΟΓΙΑΣ",null,null,null,null,null,null,null,null,null,null,null,null,null,null,null,"Υπ' αριθμ. Σ.Ο.Χ. :",null,null,null,"2/2023",null,null,null,null,null,null,null,null,null,null,null,null,null,null,null,null,"Β",35]
[null,"Έδρα Υπηρεσίας : ΠΛΑΤΕΙΑ ΗΡΩΩΝ ΑΝΩ ΛΙΟΣΙΑ",null,null,null,null,null,null,null,"ΥΠΟΨΗΦΙΩΝ ΚΑΤΗΓΟΡΙΑΣ ΠΕ ",null,null,null,null,null,null,null,null,null,null,null,null,null,null,null,null,null,null,null,null,null,null,null,null,null,null,null,null,null,null,null,null,null,null,null,null,"Γ",17.5]
[null,"Διάρκεια Σύμβασης :  8 ΜΗΝΕΣ",null,null,null,null,null,null,null,"ΚΩΔΙΚΟΣ ΘΕΣΗΣ : 100",null,null,null,null,null,null,null,null,null,null,null,null,null,null,null,null,null,null,null,null,null,null,null,null,null,null,null,null,null,null,null,null,null,null,null,null,"Δ",15]
[null,null,null,null,null,null,null,null,null,"Ειδικότητα :  ΠΟΛΙΤΙΚΩΝ ΜΗΧΑΙΚΩΝ ",null,null,null,null,null,null,null,null,null,null,null,null,null,null,null,null,null,null,null,null,null,null,null,null,null,null,null,null,null,null,null,null,null,null,null,null,"Ε"]
["Α.Μ.","ΕΠΩΝΥΜΟ","ΟΝΟΜΑ","ΟΝΟΜΑ ΠΑΤΡΟΣ","ΑΡΙΘΜ.\n ΤΑΥΤΟΤ.","ΚΩΛΥΜΑ 8ΜΗΝΗΣ ΑΠΑΣΧΟΛΗΣΗΣ ","ΕΝΤΟΠΙΟΤΗΤΑ","ΚΥΡΙΑ ΠΡΟΣΟΝΤΑ(1) / ΣΕΙΡΑ ΕΠΙΚΟΥΡΙΑΣ","ΚΡΙΤΗΡΙΑ",null,null,null,null,null,null,null,null,null,null,null,null,null,null,"ΒΑΘΜΟΛΟΓΙΑ",null,null,null,null,null,null,null,null,null,null,null,null,null,null,"sort ΚΩΛΥΜΑ 8ΜΗΝΗΣ ΑΠΑΣΧΟΛΗΣΗΣ",null,"sort  ΕΝΤΟΠΙΟΤΗΤΑ","sort ΣΥΝΟΛΟ ΜΟΝΑΔΩΝ","Σειρά Κατάταξης"]
[null,null,null,null,null,null,null,null,"ΧΡΟΝΟΣ ΣΥΝΕΧΟΜΕΝΗΣ ΑΝΕΡΓΙΑΣ\n(σε μήνες)","ΧΡΟΝΟΣ ΜΗ ΣΥΝΕΧΟΜΕΝΗΣ ΑΝΕΡΓΙΑΣ\n(σε μήνες)","ΠΟΛΥΤΕΚΝΟΣ ή ΤΕΚΝΟ ΠΟΛΥΤΕΚΝΗΣ ΟΙΚΟΓΕΝΕΙΑΣ","ΤΡΙΤΕΚΝΟΣ ή ΤΕΚΝΟ ΤΡΙΤΕΚΝΗΣ ΟΙΚΟΓΕΝΕΙΑΣ","ΜΟΝΟΓΟΝΕΑΣ ή ΤΕΚΝΟ ΜΟΝΟΓΟΝΕΪΚΗΣ ΟΙΚΟΓΕΝΕΙΑΣ","ΑΝΗΛΙΚΑ ΤΕΚΝΑ\n(αριθμ. ανήλικων τέκνων) ","ΒΑΘΜΟΣ ΒΑΣΙΚΟΥ ΤΙΤΛΟΥ","ΔΙΔΑΚΤΟΡΙΚΟ","ΜΕΤΑΠΤΥΧΙΑΚΟ","ΕΝΙΑΙΟΣ ΚΑΙ ΑΔΙΑΣΠΑΣΤΟΣ INTEGRATED MASTER (Ναι εάν ισχύει)","ΔΕΥΤΕΡΟΣ ΤΙΤΛΟΣ (Ναι εάν ισχύει)","ΠΕΡΙΣΣΟΤΕΡΑ ΤΟΥ ΕΝΟΣ ΔΙΔΑΚΤΟΡΙΚΟΥ / ΜΕΤΑΠΤΥΧΙΑΚΟΥ / INTEGRATED / ΔΕΥΤΕΡΟΥ ΤΙΤΛΟΥ","ΕΜΠΕΙΡΙΑ (σε μήνες, μέχρι 84 μήνες)","ΑΝΑΠΗΡΙΑ ΥΠΟΨΗΦΙΟΥ ΜΕ ΠΟΣΟΣΤΟ ΤΟΥΛΑΧΙΣΤΟΝ 50% (Ναι εάν ισχύει)","ΑΝΑΠΗΡΙΑ ΓΟΝΕΑ, ΤΕΚΝΟΥ, ΑΔΕΛΦΟΥ ή ΣΥΖΥΓΟΥ\n(Ναι εάν ισχύει)","ΜΟΝΑΔΕΣ\n(1α)","ΜΟΝΑΔΕΣ\n(1β)","ΜΟΝΑΔΕΣ\n (2)","ΜΟΝΑΔΕΣ\n (3)","ΜΟΝΑΔΕΣ\n (4)","ΜΟΝΑΔΕΣ\n (5)","ΜΟΝΑΔΕΣ\n(6)","ΜΟΝΑΔΕΣ\n(7)","ΜΟΝΑΔΕΣ\n(8)","ΜΟΝΑΔΕΣ\n(9)","ΜΟΝΑΔΕΣ\n(10)","ΜΟΝΑΔΕΣ\n(11)","ΜΟΝΑΔΕΣ\n(12)","ΜΟΝΑΔΕΣ\n(13)","ΜΟΝΑΔΕΣ\n(14)"]
[null,null,null,null,null,null,null,null,"(1α)","(1β)","(2)","(3)","(4)","(5)","(6)","(7)","(8)","(9)","(10)","(11)","(12)","(13)","(14)"]
[5,"ΚΟΥΤ********","ΕΥ*******","ΙΩΑΝΝΗΣ","ΑΕ565829","ΟΧΙ","ΟΧΙ",1,19,0,null,null,null,null,8.35,null,"ΝΑΙ","ΝΑΙ",null,null,null,null,null,{"$f":"IF(BB10>BC10,BB10,\"\")","v":1040},{"$f":"IF(BC10>BB10,BC10,\"\")","v":""},{"$f":"IF(K10=\"ΝΑΙ\",300,\" \")","v":" "},{"$f":"IF(L10=\"ΝΑΙ\",200,\" \")","v":" "},{"$f":"IF(M10=\"ΝΑΙ\",100,\" \")","v":" "},{"$f":"IF(N10<0,\" \",IF(AND(N10>0,N10<6),N10*50,IF(N10>=6,300,\" \")))","v":" "},{"$f":"IF(O10<5,\" \",IF(AND(O10>=5,O10<=10),O10*40,\" \"))","v":334},{"$f":"IF(P10=\"ΝΑΙ\",150,\" \")","v":" "},{"$f":"IF(Q10=\"ΝΑΙ\",70,\" \")","v":70},{"$f":"IF(R10=\"ΝΑΙ\",35,\" \")","v":35},{"$f":"IF(S10=\"ΝΑΙ\",30,\" \")","v":" "},{"$f":"IF(T10=0,\" \",T10)","v":" "},{"$f":"IF(U10<0,\" \",IF(AND(U10>0,U10<84),U10*7,IF(U10>=84,588,\" \")))","v":" "},{"$f":"IF(V10=\"ΝΑΙ\",200,\" \")","v":" "},{"$f":"IF(W10=\"ΝΑΙ\",130,\" \")","v":" "},null,null,null,{"$f":"SUM(Z10:AL10)+AZ10","v":1479},{"$f":"IF(AP10>=0,1,\" \")","v":1},null,null,null,null,null,null,null,null,{"$f":"IF(BB10>BC10,BB10,BC10)","v":1040},null,{"$f":"IF(I10<4,0,IF(I10=4,200,IF(AND(I10>4,I10<=17),((I10-4)*60)+200,IF(I10>=18,1040,0))))","v":1040},{"$f":"IF(J10<0,0,IF(AND(J10>0,J10<=8),J10*40,IF(J10>=9,360,0)))","v":0}]
[3,"ΧΑΣ****","Α***","ΒΑΣΙΛΕΙΟΣ","Ρ33003","ΟΧΙ","ΟΧΙ",1,1,7,null,null,null,null,6,null,"ΝΑΙ","ΝΑΙ",null,null,156,null,null,"",280," "," "," "," ",240," ",70,35," "," ",588," "," ",null,null,null,1213,{"$f":"IF(AP11>=0,AQ10+1,\" \")","v":2},null,null,null,null,null,null,null,null,280,null,0,280]
[13,"ΒΛ****","ΠΑΡΑΣ********","ΠΑΥΛΟΣ","ΑΕ062445","ΟΧΙ","ΟΧΙ",1,null,null,null,"ΝΑΙ",null,null,7.12,null,null,"ΝΑΙ","ΝΑΙ",null,187,null,null,"",""," ",200," "," ",284.8," "," ",35,30," ",588," "," ",null,null,null,1137.8,3,null,null,null,null,null,null,null,null,0,null,0,0]
[7,"ΠΛ*******","ΜΑΡ*****","ΚΩΣΤΑΝΤΙΝΟΣ","ΑΕ978625","ΟΧΙ","ΟΧΙ",1,null,null,null,null,null,1,7.51,null,"ΝΑΙ","ΝΑΙ",null,null,209,null,null,"",""," "," "," ",50,300.39999999999998," ",70,35," "," ",588," "," ",null,null,null,1043.4000000000001,4,null,null,null,null,null,null,null,null,0,null,0,0]
[9,"ΚΟΥΜ******","ΣΤΑ******","ΒΑΣΙΛΕΙΟΣ","ΑΚ535536","ΟΧΙ","ΟΧΙ",1,null,null,null,null,null,1,5.77,null,"ΝΑΙ","ΝΑΙ",null,null,251,null,null,"",""," "," "," ",50,230.79999999999998," ",70,35," "," ",588," "," ",null,null,null,973.8,5,null,null,null,null,null,null,null,null,0,null,0,0]
[10,"ΛΙ*****","ΑΓ*****","ΜΙΧΑΗΛ","ΑΗ549594","ΟΧΙ","ΟΧΙ",1,null,null,null,null,null,null,6.7,null,null,"ΝΑΙ",null,null,475,null,null,"",""," "," "," "," ",268," "," ",35," "," ",588," "," ",null,null,null,891,6,null,null,null,null,null,null,null,null,0,null,0,0]
[6,"ΔΗΜΗΤ***********","ΓΕ******","ΕΜΜΑΝΟΥΗΛ","Ξ102214","ΟΧΙ","ΟΧΙ",1,null,null,null,null,null,null,6.89,"ΝΑΙ","ΝΑΙ","ΝΑΙ",null,null,48,null,null,"",""," "," "," "," ",275.59999999999997,150,70,35," "," ",336," "," ",null,null,null,866.59999999999991,7,null,null,null,null,null,null,null,null,0,null,0,0]
[1,"ΝΙΚ***","Ι*****  ΠΑΝ******","ΚΑΝΝΕΛΟΣ","ΑΗ511373","ΟΧΙ","ΟΧΙ",1,null,null,null,null,null,"2",6.23,null,null,"ΝΑΙ",null,null,17,null,null,"",""," "," "," ",300,249.20000000000002," "," ",35," "," ",119," "," ",null,null,null,703.2,8,null,null,null,null,null,null,null,null,0,null,0,0]
[12,"ΠΑΝ***","ΝΙΚ*****","ΔΗΜΗΤΡΙΟΣ","Π617404","ΟΧΙ","ΟΧΙ",1,null,3,null,null,null,null,6.22,null,null,"ΝΑΙ",null,null,36,null,null,"",120," "," "," "," ",248.79999999999998," "," ",35," "," ",252," "," ",null,null,null,655.8,9,null,null,null,null,null,null,null,null,120,null,0,120]
[11,"ΔΟΥΒ***","Φ***** ΓΕ******","ΝΙΚΩΝ","ΑΚ939110","ΟΧΙ","ΟΧΙ",1,null,null,null,null,null,null,7.22,null,null,"ΝΑΙ",null,null,35,null,null,"",""," "," "," "," ",288.8," "," ",35," "," ",245," "," ",null,null,null,568.79999999999995,10,null,null,null,null,null,null,null,null,0,null,0,0]
[2,"ΒΛ******","ΑΝ*****","ΕΜΜΑΝΟΥΗΛ","ΑΟ002741","ΟΧΙ","ΟΧΙ",1,null,null,null,null,null,null,6.03,null,null,"ΝΑΙ",null,null,null,null,null,"",""," "," "," "," ",241.20000000000002," "," ",35," "," "," "," "," ",null,null,null,276.20000000000005,11,null,null,null,null,null,null,null,null,0,null,0,0]